bitfinex-derivatives/quotes_BTCF0:USTF0_20250416
["timestamp","ask_amount","ask_price","bid_price","bid_amount"]
[1744784565660,0.1197855,83545.0,83544.0,0.3065869]
[1744784567463,8e-05,83545.0,83544.0,0.6673869]
[1744784567760,0.0598354,83570.0,83566.0,0.0598363]
[1744784567956,0.179508,83570.0,83569.0,0.1196711]
[1744784568361,0.179588,83570.0,83569.0,0.1196711]
[1744784569163,0.186588,83570.0,83569.0,0.1196711]
[1744784569464,0.190588,83570.0,83569.0,0.1196711]
[1744784569663,0.183588,83570.0,83569.0,0.1196711]
[1744784569960,0.0679154,83570.0,83569.0,0.1196711]
[1744784570154,0.0678354,83570.0,83569.0,0.1196711]
[1744784570465,0.0659154,83570.0,83569.0,0.1196711]
[1744784571662,0.0658354,83570.0,83569.0,0.1196711]
[1744784571870,0.0659154,83570.0,83569.0,0.1196711]
[1744784576154,0.0659154,83570.0,83569.0,0.1832711]
[1744784577264,0.00010801,83575.0,83570.0,0.0598341]
[1744784577458,0.00010801,83575.0,83574.0,0.119664]
[1744784577659,0.02191,83589.0,83575.0,0.0598306]
[1744784577960,0.0319,83586.0,83580.0,0.1196554]
[1744784578160,0.0319,83586.0,83585.0,0.1196482]
[1744784578360,0.1825443,83588.0,83586.0,0.1196468]
[1744784578562,0.031,83588.0,83586.0,0.1196468]
[1744784578764,0.02191,83589.0,83588.0,0.1196439]
[1744784579357,0.02199,83589.0,83588.0,0.1838439]
[1744784579566,0.1416325,83589.0,83588.0,0.19300251]
[1744784580161,0.02199,83589.0,83588.0,0.19300251]
[1744784580557,0.02399,83589.0,83588.0,0.19300251]
[1744784583260,0.1436325,83589.0,83588.0,0.19300251]
[1744784583461,0.1436325,83589.0,83588.0,0.28196251]
[1744784584870,0.1436325,83589.0,83588.0,0.24876251]
[1744784588873,0.1436325,83589.0,83588.0,0.12911861]
[1744784589172,0.1436325,83589.0,83588.0,0.00915861]
[1744784589373,0.1196525,83582.0,83581.0,0.12016]
[1744784589864,0.2117525,83582.0,83581.0,0.08896]
[1744784590260,0.2117525,83582.0,83581.0,0.09796745]
[1744784590770,0.2117525,83582.0,83581.0,0.21762135]
[1744784591775,0.2127525,83582.0,83581.0,0.21762135]
[1744784592577,0.2137525,83582.0,83581.0,0.21762135]
[1744784592769,0.2147525,83582.0,83581.0,0.21762135]
[1744784595401,0.2127525,83582.0,83581.0,0.21762135]
[1744784595581,0.1226525,83582.0,83581.0,0.24782135]
[1744784595879,0.1227325,83582.0,83581.0,0.31192135]
[1744784596078,0.1217325,83582.0,83581.0,0.31192135]
[1744784596278,0.1216525,83582.0,83581.0,0.31192135]
[1744784596479,0.1217325,83582.0,83581.0,0.31192135]
[1744784598483,0.1207325,83582.0,83581.0,0.31192135]
[1744784601784,0.1852325,83582.0,83581.0,0.24782135]
[1744784602284,0.1207325,83582.0,83581.0,0.28062135]
[1744784602681,0.00108,83582.0,83581.0,0.28062135]
[1744784603088,0.001,83582.0,83581.0,0.28062135]
[1744784603388,0.00108,83582.0,83581.0,0.28062135]
[1744784603689,0.001,83582.0,83581.0,0.28062135]
[1744784603887,0.00108,83582.0,83581.0,0.28062135]
[1744784606187,0.001,83582.0,83581.0,0.28062135]
[1744784606488,0.00108,83582.0,83581.0,0.28062135]
[1744784610885,0.00108,83582.0,83581.0,0.29062135]
[1744784613683,0.02191,83589.0,83588.0,0.1196439]
[1744784613886,0.02191,83589.0,83588.0,0.4804439]
[1744784614195,0.02191,83589.0,83588.0,0.5743439]
[1744784614492,0.02199,83589.0,83588.0,0.5743439]
[1744784615488,0.02399,83589.0,83588.0,0.5743439]
[1744784615792,0.01133821,83589.0,83588.0,0.7243439]
[1744784615986,0.01141821,83589.0,83588.0,0.7243439]
[1744784617187,0.01133821,83589.0,83588.0,0.7243439]
[1744784617389,0.01141821,83589.0,83588.0,0.7243439]
[1744784617783,0.00508,83589.0,83588.0,0.7243439]
[1744784620194,0.00508,83589.0,83588.0,0.73997271]
[1744784624598,0.005,83589.0,83588.0,0.74997271]
[1744784624785,0.005,83589.0,83588.0,0.76768475]
[1744784624986,0.00508,83589.0,83588.0,0.76768475]
[1744784626299,0.00508,83589.0,83588.0,0.76771375]
[1744784627602,0.005,83589.0,83588.0,0.76771375]
[1744784627802,0.00508,83589.0,83588.0,0.76771375]
[1744784628004,0.00017946,83595.0,83594.0,0.1196353]
[1744784628197,0.00017946,83595.0,83594.0,0.2896353]
[1744784628397,0.00017946,83595.0,83594.0,0.30750147]
[1744784628597,6e-08,83595.0,83594.0,0.37190164]
[1744784628790,0.02678906,83600.0,83594.0,0.37190164]
[1744784628996,0.00496002,83604.0,83603.0,0.1196225]
[1744784629295,8.002e-05,83604.0,83603.0,0.66828884]
[1744784629599,0.063,83628.0,83627.0,0.1195881]
[1744784629801,0.0219,83631.0,83629.0,0.1195853]
[1744784629998,0.0666,83630.0,83629.0,0.12847438]
[1744784630198,0.005,83630.0,83629.0,0.21719438]
[1744784630398,0.00508,83630.0,83629.0,0.21719438]
[1744784630596,0.005,83630.0,83629.0,0.22719438]
[1744784630798,0.005,83630.0,83629.0,0.23918891]
[1744784631393,0.00508,83630.0,83629.0,0.24918891]
[1744784631596,0.005,83630.0,83629.0,0.26479138]
[1744784631792,0.00508,83630.0,83629.0,0.26479138]
[1744784631998,0.005,83630.0,83629.0,0.26479138]
[1744784632404,0.00508,83630.0,83629.0,0.26479138]
[1744784632595,0.00508,83630.0,83629.0,0.26679138]
[1744784632997,0.00508,83630.0,83629.0,0.25679138]
[1744784633202,0.06858,83630.0,83629.0,0.25779138]
[1744784633396,0.06858,83630.0,83629.0,0.24779138]
[1744784633596,0.00508,83630.0,83629.0,0.15907138]
[1744784633794,0.00508,83630.0,83629.0,0.24779138]
[1744784634393,0.00508,83630.0,83629.0,0.23218891]
[1744784635099,0.00508,83630.0,83629.0,0.22019438]
[1744784635604,0.00508,83630.0,83629.0,0.13147438]
[1744784635803,0.00508,83630.0,83629.0,0.22015438]
[1744784636700,0.00508,83630.0,83629.0,0.39193545]
[1744784636899,0.00508,83630.0,83629.0,0.43263545]
[1744784637102,0.005,83630.0,83629.0,0.43263545]
[1744784637299,0.00508,83630.0,83629.0,0.43263545]
[1744784637500,0.00508,83630.0,83629.0,0.43243545]
[1744784639401,0.00508,83630.0,83629.0,0.33395545]
[1744784639802,0.00508,83630.0,83629.0,0.42243545]
[1744784640898,0.1246638,83630.0,83629.0,0.37995438]
[1744784641209,0.1246638,83630.0,83629.0,0.01188908]
[1744784641709,0.1246638,83630.0,83629.0,0.10036908]
[1744784641900,0.1882638,83630.0,83629.0,0.21995438]
[1744784642299,0.1882638,83630.0,83629.0,0.21895438]
[1744784642505,0.1892638,83630.0,83629.0,0.21895438]
[1744784643205,0.1892638,83630.0,83629.0,0.21695438]
[1744784643906,0.4392638,83630.0,83629.0,0.21695438]
[1744784645308,0.7990638,83630.0,83629.0,0.09736908]
[1744784645606,0.8000638,83630.0,83629.0,0.21695438]
[1744784646707,0.5500638,83630.0,83629.0,0.21695438]
[1744784651417,0.5490638,83630.0,83629.0,0.21695438]
[1744784652015,0.5490638,83630.0,83629.0,0.12847438]
[1744784652217,0.5490638,83630.0,83629.0,0.15897438]
[1744784652913,0.1882638,83630.0,83629.0,0.15897438]
[1744784653214,0.1881838,83630.0,83629.0,0.15897438]
[1744784653410,0.1882638,83630.0,83629.0,0.15897438]
[1744784653904,0.1882638,83630.0,83629.0,0.19097438]
[1744784654508,0.06868,83630.0,83629.0,0.22097438]
[1744784654807,0.00508,83630.0,83629.0,0.19097438]
[1744784655814,0.00508,83630.0,83629.0,0.19197438]
[1744784656210,0.005,83630.0,83629.0,0.19197438]
[1744784656410,0.00508,83630.0,83629.0,0.19197438]
[1744784657113,0.00508,83630.0,83629.0,0.20197438]
[1744784657916,0.00508,83630.0,83629.0,0.20297438]
[1744784661012,0.00508,83630.0,83629.0,0.56377438]
[1744784661215,0.005,83630.0,83629.0,0.56377438]
[1744784661411,0.00508,83630.0,83629.0,0.56377438]
[1744784662811,0.00508,83630.0,83629.0,0.65225438]
[1744784663617,0.00508,83630.0,83629.0,0.66225438]
[1744784663810,1e-07,83630.0,83629.0,0.66225438]
[1744784664123,0.0001786,83636.0,83635.0,0.1195767]
[1744784664325,0.0001786,83636.0,83635.0,0.7349767]
[1744784664915,0.0002586,83636.0,83635.0,0.7349767]
[1744784665623,0.0001786,83636.0,83635.0,0.7349767]
[1744784665817,0.0002586,83636.0,83635.0,0.7349767]
[1744784666410,0.0002586,83636.0,83635.0,0.8234567]
[1744784673622,0.0002586,83636.0,83635.0,0.7349767]
[1744784673823,0.0002586,83636.0,83635.0,0.8232167]
[1744784674117,0.0002586,83636.0,83635.0,0.7807167]
[1744784674325,0.0002586,83636.0,83635.0,0.6007167]
[1744784676024,0.0002586,83636.0,83635.0,0.6309167]
[1744784679033,0.0002586,83636.0,83635.0,0.6409167]
[1744784679831,0.0002586,83636.0,83635.0,0.5786167]
[1744784680029,0.0002586,83636.0,83635.0,0.2078167]
[1744784680226,0.1198339,83636.0,83635.0,0.2078167]
[1744784680628,0.1830339,83636.0,83635.0,0.2078167]
[1744784681726,0.1840339,83636.0,83635.0,0.2078167]
[1744784684139,0.1830339,83636.0,83635.0,0.2078167]
[1744784685836,0.1830339,83636.0,83635.0,0.1195767]
[1744784686034,0.0634586,83636.0,83635.0,0.2078167]
[1744784686235,0.1830339,83636.0,83635.0,0.2402167]
[1744784686826,0.1830339,83636.0,83635.0,0.2078167]
[1744784693127,0.1830339,83636.0,83635.0,0.2381167]
[1744784700543,0.1830339,83636.0,83635.0,0.08824]
[1744784700740,0.1830339,83636.0,83635.0,0.2078167]
[1744784700938,0.1830339,83636.0,83635.0,0.1195767]
[1744784701139,0.119581,83632.0,83631.0,0.08804]
[1744784701437,0.0597954,83626.0,83619.0,0.00017946]
[1744784701741,0.1195981,83620.0,83619.0,0.00017946]
[1744784702245,0.1815981,83620.0,83619.0,0.00017946]
[1744784703033,0.1815981,83620.0,83619.0,0.14977906]
[1744784703237,0.0304,83620.0,83619.0,0.15871868]
[1744784703443,0.3608,83624.0,83623.0,0.1195938]
[1744784703444,0.0597969,83624.0,83623.0,0.1195938]
[1744784703748,0.0597933,83629.0,83628.0,0.1793764]
[1744784704049,0.00010801,83631.0,83630.0,0.1195838]
[1744784704232,0.1195824,83631.0,83630.0,0.1195838]
[1744784704433,0.1195824,83631.0,83630.0,0.1829838]
[1744784704434,0.1196624,83631.0,83630.0,0.1829838]
[1744784706341,0.1196624,83631.0,83630.0,0.1839838]
[1744784706943,8e-05,83631.0,83630.0,0.1839838]
[1744784707245,0.1195824,83631.0,83630.0,0.3035662]
[1744784707453,8e-05,83631.0,83630.0,0.3035662]
[1744784707748,0.0001786,83636.0,83635.0,0.1195767]
[1744784707949,0.1197539,83636.0,83635.0,0.1195767]
[1744784708542,0.1197539,83636.0,83635.0,0.1805767]
[1744784709544,0.1197539,83636.0,83635.0,0.0303]
[1744784709946,0.1197539,83636.0,83635.0,0.1498767]
[1744784710145,0.1816539,83636.0,83635.0,0.1498767]
[1744784712249,0.1816539,83636.0,83635.0,0.0303]
[1744784712652,0.1816539,83636.0,83635.0,0.1498767]
[1744784713256,0.1197539,83636.0,83635.0,0.1498767]
[1744784713451,0.1197539,83636.0,83635.0,0.2128767]
[1744784715152,0.1822539,83636.0,83635.0,0.2128767]
[1744784715351,0.1822539,83636.0,83635.0,0.1800767]
[1744784715554,0.1822539,83636.0,83635.0,0.1498767]
[1744784716561,0.1822539,83636.0,83635.0,0.1810767]
[1744784717261,0.1822539,83636.0,83635.0,0.1498767]
[1744784717866,0.1822539,83636.0,83635.0,0.1804767]
[1744784720065,0.1822539,83636.0,83635.0,0.0303]
[1744784722571,0.1822539,83636.0,83635.0,0.1498767]
[1744784723064,0.1822539,83636.0,83635.0,0.0303]
[1744784723861,0.1832539,83636.0,83635.0,0.0303]
[1744784724867,0.1195853,83629.0,83628.0,0.2076263]
[1744784725063,0.1195853,83629.0,83628.0,0.2396263]
[1744784725260,0.1195853,83629.0,83628.0,0.12004]
[1744784725466,0.1812853,83629.0,83628.0,0.08804]
[1744784725862,0.19310749,83629.0,83628.0,0.08804]
[1744784726169,0.1812853,83629.0,83628.0,0.2076267]
[1744784726469,0.1812853,83629.0,83628.0,0.1195867]
[1744784726470,0.19302054,83629.0,83628.0,0.1195867]
[1744784727262,0.19402054,83629.0,83628.0,0.1195867]
[1744784727462,0.1822853,83629.0,83628.0,0.1195867]
[1744784727764,0.1822853,83629.0,83628.0,0.1525867]
[1744784727969,0.1812853,83629.0,83628.0,0.033]
[1744784729268,0.5420853,83629.0,83628.0,0.033]
[1744784729570,0.5430853,83629.0,83628.0,0.1525867]
[1744784730668,0.5430853,83629.0,83628.0,0.033]
[1744784731071,0.5430853,83629.0,83628.0,0.0663]
[1744784732775,0.5430853,83629.0,83628.0,0.033]
[1744784733363,0.5420853,83629.0,83628.0,0.033]
[1744784733575,0.5430853,83629.0,83628.0,0.033]
[1744784733870,0.5430853,83629.0,83617.0,0.08784]
[1744784733871,0.1195981,83620.0,83617.0,0.08784]
[1744784734068,0.4803981,83620.0,83617.0,0.1476412]
[1744784734269,0.5420981,83620.0,83617.0,0.08784]
[1744784734477,0.5420981,83620.0,83618.0,0.1196]
[1744784734663,0.5420981,83620.0,83619.0,0.12871868]
[1744784735170,0.5420981,83620.0,83619.0,0.00911908]
[1744784735366,0.5722981,83620.0,83619.0,0.00911908]
[1744784735566,0.5722981,83620.0,83619.0,0.12871868]
[1744784735767,0.5420981,83620.0,83619.0,0.15921868]
[1744784735977,0.5118981,83620.0,83619.0,0.19211868]
[1744784736175,0.4803981,83620.0,83619.0,0.19211868]
[1744784736568,0.1205981,83620.0,83619.0,0.19211868]
[1744784736873,0.1206781,83620.0,83619.0,0.19211868]
[1744784737265,0.1196781,83620.0,83619.0,0.19211868]
[1744784737475,0.1206781,83620.0,83619.0,0.19211868]
[1744784738271,0.1196781,83620.0,83619.0,0.19211868]
[1744784742668,0.1195981,83620.0,83619.0,0.19211868]
[1744784742880,0.1196781,83620.0,83619.0,0.19211868]
[1744784745583,0.1812781,83620.0,83619.0,0.07251908]
[1744784745966,0.1812781,83620.0,83619.0,0.19211868]
[1744784746179,0.1812781,83620.0,83619.0,0.07251908]
[1744784746479,0.1822781,83620.0,83619.0,0.07251908]
[1744784747876,0.1812781,83620.0,83619.0,0.07251908]
[1744784748067,0.1822781,83620.0,83619.0,0.07251908]
[1744784749274,0.1822781,83620.0,83619.0,0.19211868]
[1744784749478,0.1812781,83620.0,83619.0,0.19211868]
[1744784749679,0.1822781,83620.0,83619.0,0.19211868]
[1744784750575,0.1822781,83620.0,83619.0,0.07251908]
[1744784750876,0.1822781,83620.0,83619.0,0.19211868]
[1744784753274,0.1812781,83620.0,83619.0,0.19211868]
[1744784753478,0.1822781,83620.0,83619.0,0.19211868]
[1744784756973,0.1812781,83620.0,83619.0,0.19211868]
[1744784758282,0.1196781,83620.0,83619.0,0.19211868]
[1744784758680,0.1195981,83620.0,83619.0,0.19211868]
[1744784758983,0.1528781,83620.0,83619.0,0.19211868]
[1744784759788,0.1518781,83620.0,83619.0,0.19211868]
[1744784760288,0.1828781,83620.0,83619.0,0.19211868]
[1744784760486,0.1828781,83620.0,83619.0,0.07251908]
[1744784760681,0.1828781,83620.0,83619.0,0.04201908]
[1744784761682,0.1828781,83620.0,83619.0,0.00911908]
[1744784762890,0.1828781,83620.0,83610.0,0.08764]
[1744784762891,0.119611,83611.0,83610.0,0.08764]
[1744784763091,0.1196139,83609.0,83608.0,0.0323]
[1744784763388,0.1196139,83609.0,83608.0,0.04109304]
[1744784763581,0.1811139,83609.0,83608.0,0.04109304]
[1744784763983,0.1196139,83609.0,83608.0,0.04109304]
[1744784764204,0.1196939,83609.0,83608.0,0.04109304]
[1744784765794,0.1196939,83609.0,83608.0,0.52150834]
[1744784765995,0.1206939,83609.0,83608.0,0.52150834]
[1744784766180,0.1206939,83609.0,83608.0,0.55400834]
[1744784766787,0.1196139,83609.0,83608.0,0.55400834]
[1744784766987,0.1196939,83609.0,83608.0,0.19320834]
[1744784767286,0.1196139,83609.0,83608.0,0.55400834]
[1744784767696,0.1196939,83609.0,83608.0,0.55500834]
[1744784768793,0.1196939,83609.0,83608.0,0.55600834]
[1744784772995,0.1196939,83609.0,83608.0,0.55500834]
[1744784773199,0.1196939,83609.0,83608.0,0.19420834]
[1744784773383,0.1196939,83609.0,83608.0,0.55500834]
[1744784774500,0.1196939,83609.0,83608.0,0.57073415]
[1744784776101,0.1196127,83610.0,83609.0,0.1196139]
[1744784776302,0.1196127,83610.0,83609.0,0.1848139]
[1744784776902,0.1196127,83610.0,83609.0,0.20053971]
[1744784778402,0.1196127,83610.0,83609.0,0.28817971]
[1744784778895,0.1196127,83610.0,83609.0,0.28917971]
[1744784779088,0.1196127,83610.0,83609.0,0.29117971]
[1744784779699,0.1196127,83610.0,83609.0,0.29217971]
[1744784780500,0.1196127,83610.0,83609.0,0.29117971]
[1744784780901,0.1196127,83610.0,83609.0,0.29017971]
[1744784782496,0.1196127,83610.0,83609.0,0.05052581]
[1744784783089,0.1196127,83610.0,83609.0,0.17013971]
[1744784783293,0.1843127,83610.0,83609.0,0.17113971]
[1744784783489,0.1843127,83610.0,83609.0,0.17013971]
[1744784783690,0.1843127,83610.0,83609.0,0.17213971]
[1744784784589,0.1843127,83610.0,83609.0,0.05252581]
[1744784784991,0.1843127,83610.0,83609.0,0.17213971]
[1744784785196,0.1843127,83610.0,83609.0,0.1564139]
[1744784785395,0.1843127,83610.0,83609.0,0.1544139]
[1744784785691,0.1843127,83610.0,83609.0,0.1524139]
[1744784786903,0.1843127,83610.0,83609.0,0.0328]
[1744784787199,0.1843127,83610.0,83609.0,0.1524139]
[1744784793401,0.1843127,83610.0,83608.0,0.00879304]
[1744784793402,0.1196139,83609.0,83608.0,0.00879304]
[1744784793600,0.1196139,83609.0,83608.0,0.1196153]
[1744784793801,0.1854139,83609.0,83608.0,0.1196153]
[1744784794111,0.1854139,83609.0,83608.0,0.1529153]
[1744784794896,0.1854139,83609.0,83608.0,0.16176573]
[1744784797210,0.1854139,83609.0,83608.0,0.00885043]
[1744784797408,0.119621,83604.0,83603.0,0.0925112]
[1744784797809,0.181321,83604.0,83603.0,0.2121302]
[1744784798203,0.181321,83604.0,83603.0,0.22101474]
[1744784798418,0.181321,83604.0,83603.0,0.25231474]
[1744784798614,0.181401,83604.0,83603.0,0.25231474]
[1744784799510,0.181401,83604.0,83603.0,0.25331474]
[1744784801311,0.119701,83604.0,83603.0,0.25331474]
[1744784803312,0.119701,83604.0,83603.0,0.25431474]
[1744784803710,0.119701,83604.0,83603.0,0.25331474]
[1744784804105,0.119621,83604.0,83603.0,0.25331474]
[1744784804306,0.119701,83604.0,83603.0,0.25331474]
[1744784804515,0.119701,83604.0,83603.0,0.25431474]
[1744784806816,0.119701,83604.0,83603.0,0.25331474]
[1744784807007,0.119701,83604.0,83603.0,0.25431474]
[1744784807416,0.119701,83604.0,83603.0,0.25331474]
[1744784807613,0.119701,83604.0,83603.0,0.25431474]
[1744784808514,0.119701,83604.0,83603.0,0.25331474]
[1744784808710,0.119701,83604.0,83603.0,0.25431474]
[1744784809423,0.119701,83604.0,83603.0,0.25531474]
[1744784817819,0.119701,83604.0,83603.0,0.34279474]
[1744784820221,0.119701,83604.0,83603.0,0.16336454]
[1744784820411,0.181501,83604.0,83603.0,0.13206454]
[1744784820617,0.542301,83604.0,83603.0,0.04458454]
[1744784820812,0.542301,83604.0,83603.0,0.01188454]
[1744784821513,0.542301,83604.0,83603.0,0.01088454]
[1744784821915,0.542301,83604.0,83603.0,0.00888454]
[1744784822123,0.1196225,83603.0,83602.0,0.0324]
[1744784822519,0.1815225,83603.0,83602.0,0.0324]
[1744784822922,0.1196253,83601.0,83600.0,0.00017946]
[1744784823431,0.1827253,83601.0,83600.0,0.00017946]
[1744784824532,0.1827253,83601.0,83600.0,0.0089323]
[1744784825317,0.6739,83601.0,83583.0,0.08728]
[1744784825521,0.1196496,83584.0,83583.0,0.12008]
[1744784826030,0.2149496,83584.0,83583.0,0.12008]
[1744784826525,0.2149496,83584.0,83583.0,0.12508]
[1744784826926,0.2149496,83584.0,83583.0,0.6055311]
[1744784827119,0.00017946,83592.0,83589.0,0.0598205]
[1744784827428,0.05999926,83592.0,83591.0,0.4804396]
[1744784827628,0.05999926,83592.0,83591.0,0.5459396]
[1744784827828,0.06007926,83592.0,83591.0,0.5459396]
[1744784828727,0.06007926,83592.0,83591.0,0.56290171]
[1744784829425,0.06007926,83592.0,83591.0,0.5509396]
[1744784829924,0.06007926,83592.0,83591.0,0.5489396]
[1744784830125,0.06007926,83592.0,83591.0,0.5509396]
[1744784830522,0.09197926,83592.0,83591.0,0.5509396]
[1744784830723,0.06007926,83592.0,83591.0,0.5509396]
[1744784832724,0.06007926,83592.0,83591.0,0.1901396]
[1744784833024,0.06007926,83592.0,83591.0,0.5509396]
[1744784834427,0.06007926,83592.0,83591.0,0.5180396]
[1744784834622,0.12227926,83592.0,83591.0,0.5180396]
[1744784835127,0.09187926,83592.0,83591.0,0.5180396]
[1744784835430,0.06007926,83592.0,83591.0,0.5180396]
[1744784835618,0.06007926,83592.0,83591.0,0.5150396]
[1744784835819,0.06007926,83592.0,83591.0,0.5180396]
[1744784836026,0.06007926,83592.0,83591.0,0.5512396]
[1744784836226,0.05999926,83592.0,83591.0,0.5512396]
[1744784836431,0.06007926,83592.0,83591.0,0.5512396]
[1744784838334,0.06007926,83592.0,83591.0,0.5180396]
[1744784838527,0.15517926,83592.0,83591.0,0.5180396]
[1744784841032,0.15517926,83592.0,83591.0,0.5498396]
[1744784841237,0.15517926,83592.0,83591.0,0.3984]
[1744784842433,0.15517926,83592.0,83591.0,0.005]
[1744784842838,0.16735669,83592.0,83591.0,0.005]
[1744784844631,0.1196496,83584.0,83583.0,0.00895367]
[1744784844826,0.1196568,83579.0,83578.0,0.0305]
[1744784845540,0.1835568,83579.0,83578.0,0.0305]
[1744784846738,0.1835568,83579.0,83578.0,0.03967678]
[1744784847439,0.1835568,83579.0,83578.0,0.04567678]
[1744784847628,0.1835568,83579.0,83578.0,0.04967678]
[1744784853042,0.1835568,83579.0,83578.0,0.01]
[1744784853541,0.1196654,83573.0,83572.0,0.0323]
[1744784853744,0.119674,83567.0,83566.0,0.0301]
[1744784854638,0.180974,83567.0,83566.0,0.0301]
[1744784855138,0.180974,83567.0,83566.0,0.04511175]
[1744784855340,0.180974,83567.0,83566.0,0.04911175]
[1744784863036,0.119674,83567.0,83566.0,0.16878715]
[1744784863445,0.119674,83567.0,83566.0,0.11371175]
[1744784864150,0.119674,83567.0,83566.0,0.23338715]
[1744784864648,0.119674,83567.0,83566.0,0.11371175]
[1744784865642,0.119674,83567.0,83566.0,0.23338715]
[1744784866255,0.119674,83567.0,83566.0,0.11371175]
[1744784867548,0.119674,83567.0,83566.0,0.23338715]
[1744784877255,0.119674,83567.0,83566.0,0.11371175]
[1744784877458,0.480474,83567.0,83566.0,0.04911175]
[1744784877660,0.574374,83567.0,83566.0,0.04911175]
[1744784880459,0.574374,83567.0,83566.0,0.0401]
[1744784880857,0.574374,83567.0,83566.0,0.01]
[1744784881063,0.1196897,83556.0,83555.0,0.0301]
[1744784881360,0.4804897,83556.0,83555.0,0.0301]
[1744784881560,0.5753897,83556.0,83555.0,0.0301]
[1744784882961,0.5430897,83556.0,83555.0,0.0351]
[1744784883460,0.5430897,83556.0,83555.0,0.04415067]
[1744784886068,0.1196897,83556.0,83555.0,0.16384187]
[1744784886262,0.1196897,83556.0,83549.0,0.00514665]
[1744784886460,0.1196983,83550.0,83549.0,0.00514665]
[1744784887261,0.13154665,83550.0,83549.0,0.00514665]
[1744784887459,0.1196983,83550.0,83549.0,0.00514665]
[1744784887664,0.1824983,83550.0,83549.0,0.00814665]
[1744784888461,0.1824983,83550.0,83549.0,0.00914665]
[1744784889069,0.1824983,83550.0,83549.0,0.01114665]
[1744784893262,0.5432983,83550.0,83549.0,0.01114665]
[1744784894463,0.5432983,83550.0,83549.0,0.04254665]
[1744784899871,0.5432983,83550.0,83549.0,0.01114665]
[1744784903381,0.5432983,83550.0,83549.0,0.04204665]
[1744784908380,0.5432983,83550.0,83525.0,0.059867]
[1744784908381,0.1197356,83526.0,83525.0,0.059867]
[1744784908572,0.1197356,83524.0,83517.0,0.1197451]
[1744784908774,0.1197356,83524.0,83516.0,0.1467935]
[1744784908983,0.1845356,83524.0,83520.0,0.1197407]
[1744784909375,0.1845356,83524.0,83519.0,0.4805416]
[1744784909884,0.1845356,83524.0,83519.0,0.3608]
[1744784910382,0.1845356,83524.0,83523.0,0.00914825]
[1744784910574,0.1525356,83524.0,83523.0,0.00914825]
[1744784910770,0.1845356,83524.0,83523.0,0.00914825]
[1744784911079,0.1845356,83524.0,83523.0,0.01314825]
[1744784911578,0.1845356,83524.0,83523.0,0.02220401]
[1744784911972,0.1197356,83524.0,83523.0,0.02220401]
[1744784913793,0.1836356,83524.0,83523.0,0.02220401]
[1744784913975,0.5444356,83524.0,83523.0,0.02220401]
[1744784918294,0.5444356,83524.0,83523.0,0.08460401]
[1744784921686,0.1836356,83524.0,83523.0,0.08460401]
[1744784921887,0.5444356,83524.0,83523.0,0.08460401]
[1744784922082,0.5444356,83524.0,83523.0,0.05360401]
[1744784925989,0.5444356,83524.0,83523.0,0.02220401]
[1744784927291,0.5444356,83524.0,83523.0,0.01820401]
[1744784927492,0.5444356,83524.0,83523.0,0.01420401]
[1744784927694,0.5444356,83524.0,83523.0,0.01520401]
[1744784930189,0.4805356,83524.0,83523.0,0.01520401]
[1744784930592,0.4806156,83524.0,83523.0,0.13494101]
[1744784931094,0.4806156,83524.0,83523.0,0.01520401]
[1744784931293,0.5438156,83524.0,83523.0,0.01520401]
[1744784932492,0.4806156,83524.0,83523.0,0.04520401]
[1744784932995,0.4806156,83524.0,83523.0,0.07710401]
[1744784933587,0.5114156,83524.0,83523.0,0.07710401]
[1744784934492,0.5444156,83524.0,83523.0,0.07710401]
[1744784937191,0.1836156,83524.0,83523.0,0.07710401]
[1744784938592,0.1836156,83524.0,83523.0,0.19684101]
[1744784938789,0.1198156,83524.0,83523.0,0.19684101]
[1744784939190,0.1197356,83524.0,83523.0,0.19684101]
[1744784939391,0.1198156,83524.0,83523.0,0.19684101]
[1744784939587,0.1501156,83524.0,83523.0,0.19684101]
[1744784940993,0.1815156,83524.0,83523.0,0.07710401]
[1744784941798,0.1815156,83524.0,83523.0,0.19684101]
[1744784942298,0.1198156,83524.0,83523.0,0.19684101]
[1744784942692,0.1524356,83524.0,83523.0,0.19684101]
[1744784942895,0.1839156,83524.0,83523.0,0.19684101]
[1744784944400,0.1512156,83524.0,83523.0,0.19684101]
[1744784945894,0.1198156,83524.0,83523.0,0.19684101]
[1744784948203,0.1515156,83524.0,83523.0,0.19684101]
[1744784949102,0.1829156,83524.0,83523.0,0.19684101]
[1744784951399,0.1829156,83524.0,83523.0,0.16684101]
[1744784951800,0.1829156,83524.0,83523.0,0.04710401]
[1744784952200,0.1829156,83524.0,83523.0,0.16684101]
[1744784955998,0.1829156,83524.0,83523.0,0.20004101]
[1744784962508,0.1829156,83524.0,83523.0,0.16684101]
[1744784985921,0.1512156,83524.0,83523.0,0.16684101]
[1744784986121,0.0598667,83526.0,83525.0,0.2394621]
[1744784986425,0.1796023,83526.0,83525.0,0.1197322]
[1744784987426,0.1796023,83526.0,83525.0,0.1207322]
[1744784987914,0.1806023,83526.0,83525.0,0.1207322]
[1744784988825,0.2450023,83526.0,83525.0,0.0608656]
[1744784990330,0.2450023,83526.0,83525.0,0.0934656]
[1744784994225,0.2450023,83526.0,83525.0,0.0336]
[1744785000328,0.1197471,83516.0,83514.0,0.08632]
[1744785000528,0.4805471,83516.0,83514.0,0.08632]
[1744785000731,0.4805471,83516.0,83509.0,0.1197566]
[1744785000920,0.5113471,83516.0,83509.0,0.1197566]
[1744785001120,0.5113471,83516.0,83511.0,0.1197535]
[1744785001332,0.5113471,83516.0,83512.0,0.0598761]
[1744785001528,0.1197471,83516.0,83515.0,0.12186941]
[1744785001926,0.1198271,83516.0,83515.0,0.18456941]
[1744785002231,0.1198271,83516.0,83515.0,0.19653512]
[1744785002634,0.1197422,83520.0,83519.0,0.1197428]
[1744785003135,0.1197422,83520.0,83519.0,0.1820428]
[1744785005237,0.00010801,83524.0,83521.0,0.0598699]
[1744785005433,0.00010801,83524.0,83523.0,0.119737]
[1744785005633,0.1197291,83529.0,83526.0,0.1795956]
[1744785005834,0.1197299,83528.0,83527.0,0.0639]
[1744785006638,0.1197299,83528.0,83527.0,0.1836299]
[1744785006836,0.1514299,83528.0,83527.0,0.1836299]
[1744785007429,0.1544299,83528.0,83527.0,0.1836299]
[1744785008337,0.1872299,83528.0,83527.0,0.1836299]
[1744785009230,0.1882299,83528.0,83527.0,0.1836299]
[1744785015846,0.5490299,83528.0,83527.0,0.0308]
[1744785016151,0.5794299,83528.0,83527.0,0.0308]
[1744785018444,0.2186299,83528.0,83527.0,0.0308]
[1744785018650,0.2186299,83528.0,83527.0,0.1505313]
[1744785018851,0.2186299,83528.0,83527.0,0.0308]
[1744785019051,0.2186299,83528.0,83527.0,0.1505313]
[1744785019464,0.004,83528.0,83527.0,0.1505313]
[1744785019654,0.004,83528.0,83527.0,0.1807313]